Cogmind - Beta 14 *** ADVENTURER MODE // 2024.09.10 @ 11:02:12 // Winter2019/RPGLIKE Player: Gallgagger Result: Destroyed by Executioner with Helical Railgun Performance ------------- Evolutions (9) 4500 Regions Visited (21) 4200 Robots Destroyed (420) 2100 Value Destroyed (24200) 24200 Prototype IDs (27) 540 Alien Tech Used (0) 0 Bonus (20054) 20054 TOTAL SCORE: 55594 Bonus ------- Triggered High Security 1000 High Alert Combat Kills 12516 Follower Combat Kills 2922 Network Hubs Disabled 200 Registered with UFD 300 Met Imprinter 300 Met R17 at Cetus 500 Met R17 at Research 2000 Scanned by Researcher 500 Friendly Fire -184 Cogmind --------- Core Integrity 0/2600 Matter 300/300 Energy 850/850 System Corruption 19% Temperature Cool (0) Movement Walking (195) Ox1 Location -1/Command Parts ------- > --- POWER (3) -------- Reinforced Fission Core Quantum Reactor Light Quantum Reactor > --- PROPULSION (5) --- Cargo Legs Centrium Leg > --- UTILITY (8) ------ Scrap Suit Advanced Thermal Generator Improved Signal Interpreter Advanced Target Analyzer Core Analyzer Advanced Phase Shifter Advanced Force Field > --- WEAPON (5) ------- Heavy Gatling Laser Phase Gun Improved Matter Neutralizer Containment Facilitator > --- INVENTORY (4) ---- Quantum Reactor CPS Tube (2) CPS Tube (2) Shrapnel Trap Peak State ------------ > --- POWER ------------ Reinforced Fission Core Quantum Reactor Light Quantum Reactor > --- PROPULSION ------- Cargo Legs Centrium Leg Centrium Leg Centrium Leg > --- UTILITY ---------- Scrap Suit Advanced Thermal Generator Improved Signal Interpreter Experimental Terrain Scanner Core Analyzer Advanced Phase Shifter Thermal Barrier > --- WEAPON ----------- Heavy Gatling Laser Heavy Gatling Laser Enhanced Quantum Rifle Improved Matter Neutralizer Enhanced Nova Cannon > --- INVENTORY -------- Quantum Reactor Subdweller Optics Shrapnel Trap PL-3XN's Ring of Power [Rating: 160] Favorites ----------- Power Light Nuclear Core Engine F-cell Engine Power Core Light Nuclear Core Reactor Quantum Reactor Propulsion Cargo Legs Treads Centrium Heavy Treads Leg Cargo Legs Wheel Wheel Flight Unit Electron Diverter Utility Scrap Suit Device Scrap Suit Processor Improved Signal Interpreter Hackware Hacking Suite Protection Enhanced Scrap Shield Weapon Plasma Rifle Energy Gun Plasma Rifle Energy Cannon Enhanced Nova Cannon Ballistic Gun Assault Rifle Launcher Containment Facilitator Build | -11 -10 -10 -10 -9 -9 -6 -6 -6 -6 -5 -5 -4 -4 -4 -4 -4 -3 -3 -2 -1 -1 ------- Run | Yrd Mat Min Sub Rec Scr Fac Low Low Zio Pro Fac Fac Ext Cet Arc Hub Res Arm Res Acc Com Slots Evolved 17 | 6 . . 1 . . 4 1 1 . 1 . . . . . 1 . 1 . . 1 Power 2 | 1 . . . . . 1 . . . . . . . . . . . . . . . Propulsion 4 | 1 . . . . . 2 . . . . . . . . . 1 . . . . . Utility 7 | 2 . . . . . 1 1 1 . 1 . . . . . . . . . . 1 Weapon 4 | 2 . . 1 . . . . . . . . . . . . . . 1 . . . Parts Attached 102 | 7 6 2 6 . 3 8 2 5 1 . 9 4 7 8 . 3 2 14 . 4 11 Power 19 | 2 1 . 3 . . 2 . 2 . . . 2 1 3 . . . 2 . . 1 Engine 8 | 2 . . 3 . . 2 . 1 . . . . . . . . . . . . . Core 4 | . 1 . . . . . . 1 . . . 2 . . . . . . . . . Reactor 7 | . . . . . . . . . . . . . 1 3 . . . 2 . . 1 Propulsion 26 | 2 . . 1 . . 2 . . . . 4 2 3 1 . 1 1 1 . 2 6 Treads 1 | . . . . . . . . . . . 1 . . . . . . . . . . Leg 21 | . . . 1 . . 2 . . . . 1 2 3 1 . 1 1 1 . 2 6 Wheel 2 | 2 . . . . . . . . . . . . . . . . . . . . . Hover . | . . . . . . . . . . . . . . . . . . . . . . Flight 2 | . . . . . . . . . . . 2 . . . . . . . . . . Utility 24 | . 2 1 1 . 3 1 2 . 1 . 4 . 2 1 . . 1 1 . 2 2 Device 13 | . 1 . . . 2 . 1 . 1 . 3 . 1 . . . 1 . . 2 1 Storage . | . . . . . . . . . . . . . . . . . . . . . . Processor 4 | . 1 . . . 1 . . . . . 1 . . . . . . . . . 1 Hackware 1 | . . . . . . . . . . . . . 1 . . . . . . . . Protection 6 | . . 1 1 . . 1 1 . . . . . . 1 . . . 1 . . . Artifact . | . . . . . . . . . . . . . . . . . . . . . . Weapon 33 | 3 3 1 1 . . 3 . 3 . . 1 . 1 3 . 2 . 10 . . 2 Energy Gun 23 | . 3 1 1 . . 3 . 3 . . 1 . 1 2 . 2 . 5 . . 1 Energy Cannon 5 | . . . . . . . . . . . . . . . . . . 5 . . . Ballistic Gun 4 | 3 . . . . . . . . . . . . . 1 . . . . . . . Ballistic Cannon . | . . . . . . . . . . . . . . . . . . . . . . Launcher 1 | . . . . . . . . . . . . . . . . . . . . . 1 Special Weapon . | . . . . . . . . . . . . . . . . . . . . . . Impact Weapon . | . . . . . . . . . . . . . . . . . . . . . . Slashing Weapon . | . . . . . . . . . . . . . . . . . . . . . . Piercing Weapon . | . . . . . . . . . . . . . . . . . . . . . . Special Melee Weapon . | . . . . . . . . . . . . . . . . . . . . . . Unidentified Prototypes 19 | . . . 1 . . 3 2 . 1 . 5 . . 3 . . . 2 . . 2 Parts Lost 4 | . . . . . . . . . . . 2 . 1 . . . . . . 1 . Power 1 | . . . . . . . . . . . 1 . . . . . . . . . . Propulsion . | . . . . . . . . . . . . . . . . . . . . . . Utility 2 | . . . . . . . . . . . 1 . . . . . . . . 1 . Weapon 1 | . . . . . . . . . . . . . 1 . . . . . . . . Highest Loss Streak 2 | . . . . . . . . . . . 2 . 1 . . . . . . 1 . To Critical Strikes 1 | . . . . . . . . . . . . . 1 . . . . . . . . Average Slot Usage (%) 80 | . 83 97 71 69 67 74 82 79 80 80 79 71 78 88 89 89 90 89 90 89 88 Engine 6 | . 17 10 6 7 7 9 11 12 10 10 10 8 5 1 . . . . . . . Core 5 | . 2 10 8 7 7 5 5 2 5 5 3 . 5 5 5 5 5 4 4 4 4 Reactor 3 | . . . . . . . . . . . . . 4 8 10 10 10 9 9 9 8 Leg 12 | . . . 5 7 7 13 16 15 15 15 13 9 14 15 15 17 20 19 19 19 18 Wheel 1 | . 20 20 5 . . . . . . . . . . . . . . . . . . Device 13 | . 3 10 . . 4 11 15 15 17 20 20 19 16 21 21 20 20 19 19 20 20 Processor 8 | . 9 10 8 7 6 5 5 5 5 5 8 10 10 10 10 10 10 9 9 9 12 Protection 3 | . . 7 8 7 1 2 4 5 5 5 3 . . 4 5 5 5 4 4 2 . Energy Gun 21 | . 27 30 26 30 30 23 22 21 21 20 20 21 19 15 15 15 15 14 14 14 13 Energy Cannon 2 | . . . . . . . . . . . . . . 5 5 5 5 7 9 9 8 Peak Build Rating 160 | 7 11 16 34 34 49 76 92 100 108 108 112 94 111 129 128 138 141 158 157 158 160 Average Rating 92 | 4 8 12 28 34 35 65 91 96 103 108 104 91 97 125 128 135 140 152 157 155 153 On Entrance 87 | . 7 11 16 34 34 49 76 92 99 108 108 94 85 111 128 128 138 141 157 157 158 Naked Turns . | . . . . . . . . . . . . . . . . . . . . . . Heaviest Build 131 | 13 17 21 39 39 39 48 65 76 76 76 76 56 86 101 101 104 104 121 121 121 131 Greatest Support 155 | 20 20 25 60 60 60 95 95 95 95 95 95 75 105 105 105 135 143 148 148 151 155 Greatest Overweight (x) 1 | . . . 1 . . . . . . . . . . . . . . . . . 1 Average Overweight (x) . | . . . . . . . . . . . . . . . . . . . . . . Largest Inventory Capacity 4 | . . 3 3 3 3 3 3 3 3 4 4 4 4 4 4 4 4 4 4 4 4 Average Capacity 3 | . . 2 3 3 3 3 3 3 3 3 4 4 4 4 4 4 4 4 4 4 4 Most Carried 4 | . . 1 3 3 3 3 3 3 3 3 4 4 4 4 4 4 4 4 4 4 4 Average Carried 3 | . . . 2 3 2 3 3 3 3 3 3 4 4 4 4 4 4 4 4 4 3 Final Capacity 4 | . . 3 3 3 3 3 3 3 3 4 4 4 4 4 4 4 4 4 4 4 4 Final Carried 4 | . . 1 3 3 3 3 3 3 3 3 4 4 4 4 4 4 4 4 4 4 4 Class Distribution -------------------- 30% | Scavenger-Gunner 22% | Hacker-Gunner 18% | Pyromaniac-Gunner 14% | Hacker-Tank 10% | Gunner Dominant Class ---------------- Gunner | -10/Materials Gunner | -10/Mines Gunner | -10/Subcaves Scavenger-Gunner | -9/Recycling Scavenger-Gunner | -9/Scraptown Scavenger-Gunner | -6/Factory Scavenger-Gunner | -6/Lower Caves Scavenger-Gunner | -6/Lower Caves Pyromaniac-Gunner | -6/Zion Pyromaniac-Gunner | -5/Proximity Caves Pyromaniac-Gunner | -5/Factory Hacker-Gunner | -4/Factory Hacker-Gunner | -4/Extension Hacker-Tank | -4/Cetus Hacker-Tank | -4/Archives Hacker-Tank | -4/Hub_04(d) Hacker-Tank | -3/Research Hacker-Tank | -3/Armory Hacker-Tank | -2/Research Hacker-Tank | -1/Access Hacker-Gunner | -1/Command Resources | -11 -10 -10 -10 -9 -9 -6 -6 -6 -6 -5 -5 -4 -4 -4 -4 -4 -3 -3 -2 -1 -1 ----------- Run | Yrd Mat Min Sub Rec Scr Fac Low Low Zio Pro Fac Fac Ext Cet Arc Hub Res Arm Res Acc Com Matter Collected 1492 | 75 269 20 60 . 10 100 20 50 10 . 117 20 75 90 . 30 94 189 . 40 223 Remotely . | . . . . . . . . . . . . . . . . . . . . . . Salvage Created 22210 | . 688 98 253 142 . 498 755 434 . 380 3688 760 1331 190 . 2374 1312 2347 172 156 6632 Parts 809 | . 41 8 16 10 . 21 24 8 . 21 132 24 48 6 . 76 65 86 5 13 205 Haulers Intercepted 4 | . . . . . . . 1 . . . 1 . . . . 2 . . . . . Recyclers Shooed 4 | . . . . . . . . . . . 1 1 1 . . 1 . . . . . Parts Field Recycled . | . . . . . . . . . . . . . . . . . . . . . . Retrieved Matter . | . . . . . . . . . . . . . . . . . . . . . . Parts Self-Destructed 57 | . . . 5 . . . 16 17 . 19 . . . . . . . . . . . Prevented . | . . . . . . . . . . . . . . . . . . . . . . Kills | -11 -10 -10 -10 -9 -9 -6 -6 -6 -6 -5 -5 -4 -4 -4 -4 -4 -3 -3 -2 -1 -1 ------- Run | Yrd Mat Min Sub Rec Scr Fac Low Low Zio Pro Fac Fac Ext Cet Arc Hub Res Arm Res Acc Com Combat Hostiles Destroyed 401 | . 16 5 8 3 . 11 14 7 . 14 71 11 13 3 . 23 20 42 1 5 134 Guns 276 | . 16 5 8 3 . 10 12 6 . 13 59 8 8 2 . 15 10 27 1 2 71 Cannons 73 | . . . . . . . . . . . . . . 1 . 8 8 9 . 1 46 Classes Destroyed 29 | . 3 . 2 1 . 2 2 2 . . 5 1 2 . . 3 2 . . . 4 Worker 5 | . . . . . . . . . . . 3 . . . . 2 . . . . . Builder 3 | . . . . . . . . . . . . . 1 . . 1 . . 1 . . Tunneler 2 | . . . . . . . . . . . . . . . . 1 1 . . . . Hauler 4 | . . . . . . . 1 . . . 1 . . . . 2 . . . . . Recycler 12 | . . . . . . . . . . . 3 1 2 . . 4 . . . . 2 Minesweeper 1 | . . . . . . . . 1 . . . . . . . . . . . . . Mechanic 4 | . . . . . . . . . . . . . . . . 1 . 1 . . 2 Operator 8 | . . . . . . 1 . . . . . 1 2 . . . 1 1 . . 2 Turret 1 | . . . 1 . . . . . . . . . . . . . . . . . . Watcher 17 | . 3 . . . . 1 . . . . 4 1 . . . 2 3 . 1 1 1 Swarmer 58 | . 6 5 3 . . 3 2 3 . 11 20 . . . . . 1 4 . . . Saboteur 4 | . . . . . . . . . . . . . . . . 1 . . . . 3 Grunt 134 | . 10 . . . . 4 7 1 . 2 29 2 6 . . 9 6 10 . . 48 Brawler 14 | . . . . . . . . . . . . 1 . . . 1 . . . . 12 Duelist 16 | . . . . . . . 2 . . . . . . . . 1 . 5 . . 8 Protector 6 | . . . . . . . . . . . 1 . . . . 1 . 2 . . 2 Sentry 36 | . . . . 3 . 2 2 1 . 1 5 3 5 . . 3 1 6 1 1 2 Demolisher 7 | . . . . . . . . . . . . . . . . . 2 5 . . . Specialist 11 | . . . . . . . . . . . 3 . . . . . . 2 . . 6 Hunter 33 | . . . . . . . . 2 . . 7 . . . . 4 3 7 . 2 8 Programmer 45 | . . . . . . 2 1 . . . 4 5 . . . . 6 2 . . 25 Heavy 4 | . . . . . . . . . . . 2 . . . . 1 . . . . 1 Behemoth 7 | . . . . . . . . . . . . . 2 . . . . . . 2 3 Cetus Guard 3 | . . . . . . . . . . . . . . 3 . . . . . . . Lightning 2 | . . . . . . . . . . . . . . . . 2 . . . . . Investigator 1 | . . . . . . . . . . . . . . . . . . . . . 1 Striker 2 | . . . . . . . . . . . . . . . . . 1 . . . 1 Executioner 7 | . . . . . . . . . . . . . . . . . . . . . 7 Alpha 7 2 | . . . . . . . . . . . . . . . . . . . . . 2 Subdweller 5 | . . . 5 . . . . . . . . . . . . . . . . . . Guerrilla 2 | . . . . . . . . . . . . . . . . . . . . . 2 Mutant 4 | . . . . . . . . . . . . . . . . . . . . . 4 Best Kill Streak 18 | . 5 3 4 2 . 4 6 3 . 5 10 4 5 2 . 10 5 10 3 2 18 Combat Bots Only 16 | . 5 3 3 2 . 4 6 3 . 5 10 3 3 2 . 7 4 10 1 2 16 Max Kills in Single Turn 3 | . 2 2 1 1 . 1 2 1 . 3 3 1 1 1 . 3 2 2 2 1 2 Gunslinging 2 | . 1 1 . . . . 1 . . 2 2 . . . . . . . . . . Exploded . | . . . . . . . . . . . . . . . . . . . . . . Melee . | . . . . . . . . . . . . . . . . . . . . . . Uniques/NPCs Destroyed . | . . . . . . . . . . . . . . . . . . . . . . Combat | -11 -10 -10 -10 -9 -9 -6 -6 -6 -6 -5 -5 -4 -4 -4 -4 -4 -3 -3 -2 -1 -1 -------- Run | Yrd Mat Min Sub Rec Scr Fac Low Low Zio Pro Fac Fac Ext Cet Arc Hub Res Arm Res Acc Com Hostile Shots Fired 2733 | . 51 9 62 . . 73 85 49 . 29 377 59 72 29 . 195 117 197 . 145 1184 Missed 1051 | . 14 5 22 . . 27 31 14 . 13 123 21 22 12 . 69 38 79 . 64 497 Damage Taken 17385 | . 305 22 337 . . 368 514 332 . 171 3105 398 525 258 . 1966 1243 1285 . 682 5874 Core 12691 | . 244 17 181 . . 276 315 191 . 97 2166 316 409 199 . 1402 822 941 . 512 4603 Absorbed by Shields 3095 | . . . . . . . . . . . . . 30 . . . . . . . 3065 Redirected to Core 11333 | . 178 11 163 . . 223 293 178 . 89 1914 258 340 167 . 1297 758 829 . 464 4171 Redirected to Shielding 16 | . . 1 . . . 13 2 . . . . . . . . . . . . . . Ignored by Resistances 14360 | . 101 12 143 . . 272 369 241 . 125 2328 473 790 215 . 1264 917 1232 . 512 5366 Regen/Repaired (Parts) 94 | . . . . . . . . . . . . . 84 . . . . . . . 10 Core Remaining (%) 81 | 100 . . . . 82 . . . . 100 60 . . . . 36 . 96 96 . . Volleys Fired 681 | . 29 4 34 3 . 23 26 13 1 13 108 26 36 10 2 42 35 56 2 12 206 Largest 5 | . 3 3 3 4 . 4 4 4 4 4 4 4 4 4 2 4 4 5 5 5 5 Hottest 498 | . 150 150 175 225 . 253 253 300 300 300 300 300 300 341 186 361 361 498 498 498 498 Shots Fired 2712 | . 87 12 100 12 . 89 101 52 4 52 423 94 143 30 3 160 128 235 10 60 917 Gun 2164 | . 87 12 100 12 . 89 101 52 4 52 423 94 143 20 2 118 93 158 6 36 562 Cannon 548 | . . . . . . . . . . . . . . 10 1 42 35 77 4 24 355 Launcher . | . . . . . . . . . . . . . . . . . . . . . . Special . | . . . . . . . . . . . . . . . . . . . . . . Kinetic 6 | . 6 . . . . . . . . . . . . . . . . . . . . Thermal 2706 | . 81 12 100 12 . 89 101 52 4 52 423 94 143 30 3 160 128 235 10 60 917 Explosive . | . . . . . . . . . . . . . . . . . . . . . . Electromagnetic . | . . . . . . . . . . . . . . . . . . . . . . Robot Hit Streak 114 | . 13 4 17 16 . 33 29 23 . 10 114 27 26 21 11 31 30 56 26 34 72 Robot Miss Streak 3 | . 2 2 1 . . 2 1 1 . 3 2 1 1 2 . 2 1 3 1 1 2 Penetration Max . | . . . . . . . . . . . . . . . . . . . . . . Secondary Targets 37 | . 3 3 2 . . 1 3 1 . 3 15 2 4 . . . . . . . . Max Gunslinging Chain 2 | . 1 1 1 . . 1 2 1 . 2 2 1 1 . . . . . . . . Shots Hit Robots 1956 | . 57 8 61 10 . 72 79 45 . 31 306 76 119 24 3 115 90 159 7 37 657 Core Hits 1183 | . 32 5 20 6 . 28 29 14 . 16 141 33 49 12 1 70 46 110 7 25 539 Critical Kills 23 | . . . . . . . . . . . . . . . . 4 4 5 . 2 8 Critical Parts Destroyed 9 | . . . . . . . . . . . . . . . . 4 3 2 . . . Critical Strikes 127 | . 6 1 8 1 . 6 7 7 . 4 41 4 9 1 . 8 7 7 . 2 8 Burn 95 | . 6 1 8 1 . 6 7 7 . 4 41 4 9 1 . . . . . . . Meltdown 15 | . . . . . . . . . . . . . . . . . 1 4 . 2 8 Destroy 17 | . . . . . . . . . . . . . . . . 8 6 3 . . . Melee Attacks . | . . . . . . . . . . . . . . . . . . . . . . Impact . | . . . . . . . . . . . . . . . . . . . . . . Slashing . | . . . . . . . . . . . . . . . . . . . . . . Piercing . | . . . . . . . . . . . . . . . . . . . . . . Sneak Attacks . | . . . . . . . . . . . . . . . . . . . . . . Combat Hostiles . | . . . . . . . . . . . . . . . . . . . . . . Follow-up Attacks . | . . . . . . . . . . . . . . . . . . . . . . Damage Inflicted 71767 | . 728 109 994 143 . 1418 1792 1060 . 809 8518 2147 3060 809 109 4390 3576 7239 374 1722 32770 Guns 56502 | . 728 109 994 143 . 1418 1792 1060 . 809 8506 2138 3060 467 61 3100 2526 5391 282 1217 22701 Cannons 15156 | . . . . . . . . . . . . . . 342 48 1290 976 1848 92 505 10055 Explosions . | . . . . . . . . . . . . . . . . . . . . . . Melee . | . . . . . . . . . . . . . . . . . . . . . . Ramming 109 | . . . . . . . . . . . 12 9 . . . . 74 . . . 14 Kinetic 24 | . 24 . . . . . . . . . . . . . . . . . . . . Thermal 71634 | . 704 109 994 143 . 1418 1792 1060 . 809 8506 2138 3060 809 109 4390 3502 7239 374 1722 32756 Explosive . | . . . . . . . . . . . . . . . . . . . . . . Electromagnetic . | . . . . . . . . . . . . . . . . . . . . . . Impact . | . . . . . . . . . . . . . . . . . . . . . . Slashing . | . . . . . . . . . . . . . . . . . . . . . . Piercing . | . . . . . . . . . . . . . . . . . . . . . . Highest Corruption 19 | . . . . . . . . . . . 4 . . . . 14 5 7 . . 19 Average Corruption 5 | . . . . . . . . . . . 3 . . . . 9 4 5 . . 6 Corruption Purged . | . . . . . . . . . . . . . . . . . . . . . . Corruption Blocked . | . . . . . . . . . . . . . . . . . . . . . . Effects 152 | . . . . . . . . . . . 18 . . . . 3 20 33 . . 78 Message Errors 24 | . . . . . . . . . . . 4 . . . . . 1 4 . . 15 Matter Fused 36 | . . . . . . . . . . . 3 . . . . 2 8 6 . . 17 Heat Flow Errors 11 | . . . . . . . . . . . 2 . . . . . 2 3 . . 4 Energy Discharges 17 | . . . . . . . . . . . 2 . . . . . 3 4 . . 8 Parts Rejected 6 | . . . . . . . . . . . . . . . . . 1 4 . . 1 Parts Fused 1 | . . . . . . . . . . . 1 . . . . . . . . . . Data Loss (minor) 23 | . . . . . . . . . . . 4 . . . . 1 3 5 . . 10 Data Loss (major) 4 | . . . . . . . . . . . . . . . . . 1 1 . . 2 Misfires 1 | . . . . . . . . . . . 1 . . . . . . . . . . Alerts 3 | . . . . . . . . . . . . . . . . . 1 1 . . 1 Misdirections 3 | . . . . . . . . . . . . . . . . . . . . . 3 Weapon Failures 23 | . . . . . . . . . . . 1 . . . . . . 5 . . 17 Overload Shots . | . . . . . . . . . . . . . . . . . . . . . . Overflow Damage 475 | . . . . . . . . . . . . . . . . 12 37 85 . 28 313 Projectiles 475 | . . . . . . . . . . . . . . . . 12 37 85 . 28 313 Explosions . | . . . . . . . . . . . . . . . . . . . . . . Melee . | . . . . . . . . . . . . . . . . . . . . . . Knockbacks . | . . . . . . . . . . . . . . . . . . . . . . Impact . | . . . . . . . . . . . . . . . . . . . . . . Kinetic . | . . . . . . . . . . . . . . . . . . . . . . Secondary . | . . . . . . . . . . . . . . . . . . . . . . Self-Inflicted Damage 33 | . . . . . . . . . . . . 33 . . . . . . . . . Shots 1 | . . . . . . . . . . . . 1 . . . . . . . . . Rammed . | . . . . . . . . . . . . . . . . . . . . . . Targets Rammed 7 | . . . . . . . . . . . 2 1 . . . . 3 . . . 1 Kicked 7 | . . . . . . . . . . . 2 1 . . . . 3 . . . 1 Crushed . | . . . . . . . . . . . . . . . . . . . . . . Highest Temperature 401 | . 270 42 7 81 . 60 228 260 108 260 305 . 36 123 . 237 218 401 24 . 147 Average Temperature 71 | . 105 24 3 49 . 17 55 90 66 110 48 . 9 49 . 75 77 92 15 . 58 Received Heat Transfer 4018 | . 177 . 105 . . 222 261 117 . 45 1132 117 188 18 . 241 141 355 . 9 890 Effects 2 | . . . . . . . . . . . 1 . . . . . . 1 . . . Shutdowns 1 | . . . . . . . . . . . . . . . . . . 1 . . . Energy Bleed 1 | . . . . . . . . . . . 1 . . . . . . . . . . Siege Activations . | . . . . . . . . . . . . . . . . . . . . . . Robots Corrupted . | . . . . . . . . . . . . . . . . . . . . . . Combat Hostiles . | . . . . . . . . . . . . . . . . . . . . . . Parts Fried . | . . . . . . . . . . . . . . . . . . . . . . Impact Corruptions . | . . . . . . . . . . . . . . . . . . . . . . Robots Melted 55 | . . . . . . 1 2 1 . 1 13 3 5 . . . 2 7 . 2 18 Combat Hostiles 52 | . . . . . . 1 2 1 . 1 12 3 5 . . . 2 6 . 2 17 Parts Melted 318 | . 6 3 6 1 . 13 17 15 . 5 72 24 18 2 . 7 17 27 . 5 80 Heat Transferred 98845 | . 2479 370 2849 444 . 3145 3478 2404 . 1900 18607 4250 6796 1077 111 4413 3441 7665 423 1610 33383 Parts Sabotaged 9 | . . . . . . . . . . . . 4 . . . . . . . . 5 Parts Stolen . | . . . . . . . . . . . . . . . . . . . . . . Parts Stripped . | . . . . . . . . . . . . . . . . . . . . . . Power Chain Reactions 2 | . . . . . . . . . . . 2 . . . . . . . . . . Alert | -11 -10 -10 -10 -9 -9 -6 -6 -6 -6 -5 -5 -4 -4 -4 -4 -4 -3 -3 -2 -1 -1 ------- Run | Yrd Mat Min Sub Rec Scr Fac Low Low Zio Pro Fac Fac Ext Cet Arc Hub Res Arm Res Acc Com Peak Influence 2986 | . 366 241 . 40 . 213 . . . . 1415 850 782 511 211 1016 843 1694 1160 797 2986 Initial 1100 | . . 120 . . . . . . . . . 597 358 264 104 61 462 325 1100 609 447 Average 701 | . 127 166 . 18 . 90 . . . . 666 717 586 396 197 619 637 1167 1114 714 1216 Maximum Alert Level 5 | . 1 1 . . . 1 . . . . 4 3 3 2 1 3 3 5 4 3 5 Low Security (%) 22 | 100 73 75 . 100 . 95 . . . . 12 . . . 17 24 . . . . . Level 1 9 | . 26 24 . . . 4 . . . . 20 . 4 73 82 8 . 10 . . . Level 2 24 | . . . . . . . . . . . 24 48 69 26 . 10 71 15 . 34 18 Level 3 23 | . . . . . . . . . . . 26 51 25 . . 56 28 8 . 65 33 Level 4 12 | . . . . . . . . . . . 15 . . . . . . 37 100 . 29 Level 5 2 | . . . . . . . . . . . . . . . . . . 21 . . 2 High Security 4 | . . . . . . . . . . . . . . . . . . 6 . . 15 Max Security . | . . . . . . . . . . . . . . . . . . . . . . Squads Dispatched 82 | . 2 . . . . 2 . . . . 13 4 2 . . 11 4 4 . 3 37 Investigation 12 | . 2 . . . . . . . . . 4 . 1 . . 3 1 . . . 1 Extermination 14 | . . . . . . 2 . . . . 1 1 . . . . . 1 . 1 8 Reinforcement 21 | . . . . . . . . . . . 4 2 1 . . 5 3 . . . 6 Assault 33 | . . . . . . . . . . . 3 1 . . . 3 . 3 . 1 22 Garrison 2 | . . . . . . . . . . . 1 . . . . . . . . 1 . Intercept . | . . . . . . . . . . . . . . . . . . . . . . Searches Triggered . | . . . . . . . . . . . . . . . . . . . . . . Construction Impeded 2 | . . . . . . . . . . . . 1 . . . 1 . . . . . Haulers Reinforced 1 | . . . . . . . . . . . . . . . . 1 . . . . . Active Scanning Responses . | . . . . . . . . . . . . . . . . . . . . . . Cargo Convoy Interrupts 1 | . . . . . . . . . . . 1 . . . . . . . . . . Stealth | -11 -10 -10 -10 -9 -9 -6 -6 -6 -6 -5 -5 -4 -4 -4 -4 -4 -3 -3 -2 -1 -1 --------- Run | Yrd Mat Min Sub Rec Scr Fac Low Low Zio Pro Fac Fac Ext Cet Arc Hub Res Arm Res Acc Com Distress Signals 19 | . . . . . . 1 . . . . 3 1 1 2 . . 4 5 1 . 1 Communications Jammed . | . . . . . . . . . . . . . . . . . . . . . . Distress Signals . | . . . . . . . . . . . . . . . . . . . . . . Times Spotted 602 | . 19 6 16 1 . 15 15 10 . 14 91 19 23 10 3 56 33 65 2 6 198 Peak Tracking Total 17 | . 4 3 4 1 . 4 7 4 . 5 14 5 4 5 2 14 6 14 2 4 17 Tactical Retreats 15 | . 1 . 1 . . . 1 . . . 1 1 . . . 1 . 1 . . 8 Traps | -11 -10 -10 -10 -9 -9 -6 -6 -6 -6 -5 -5 -4 -4 -4 -4 -4 -3 -3 -2 -1 -1 ------- Run | Yrd Mat Min Sub Rec Scr Fac Low Low Zio Pro Fac Fac Ext Cet Arc Hub Res Arm Res Acc Com Traps Triggered 11 | . 1 . . . . . . . . . 1 2 . . . . 1 1 . . 5 Indirectly . | . . . . . . . . . . . . . . . . . . . . . . Trap Hack Attempts . | . . . . . . . . . . . . . . . . . . . . . . Triggered . | . . . . . . . . . . . . . . . . . . . . . . Disarmed . | . . . . . . . . . . . . . . . . . . . . . . Reprogrammed . | . . . . . . . . . . . . . . . . . . . . . . Reused . | . . . . . . . . . . . . . . . . . . . . . . Traps Extracted . | . . . . . . . . . . . . . . . . . . . . . . Installed . | . . . . . . . . . . . . . . . . . . . . . . Triggered . | . . . . . . . . . . . . . . . . . . . . . . Most Traps Carried 1 | . . . 1 1 1 1 1 1 1 1 1 1 1 1 1 1 1 1 1 1 1 Machines | -11 -10 -10 -10 -9 -9 -6 -6 -6 -6 -5 -5 -4 -4 -4 -4 -4 -3 -3 -2 -1 -1 ---------- Run | Yrd Mat Min Sub Rec Scr Fac Low Low Zio Pro Fac Fac Ext Cet Arc Hub Res Arm Res Acc Com Machines Disabled 26 | . . . . . . . . . . . 3 2 . . 2 2 2 7 . 3 5 Max in Single Turn 2 | . . . . . . . . . . . 2 2 . . . 1 1 1 . 2 1 Garrison Access 3 | . . . . . . . . . . . 1 . . . . 1 1 . . . . Network Hub 1 | . . . . . . . . . . . . . . . . 1 . . . . . Machines Repaired . | . . . . . . . . . . . . . . . . . . . . . . Machines Dismantled . | . . . . . . . . . . . . . . . . . . . . . . Machines Sabotaged 1 | . . . . . . . . . . . . . . . . 1 . . . . . Overloaded Fab Kills 1 | . . . . . . . . . . . 1 . . . . . . . . . . Hacking | -11 -10 -10 -10 -9 -9 -6 -6 -6 -6 -5 -5 -4 -4 -4 -4 -4 -3 -3 -2 -1 -1 --------- Run | Yrd Mat Min Sub Rec Scr Fac Low Low Zio Pro Fac Fac Ext Cet Arc Hub Res Arm Res Acc Com Machines Accessed 48 | . 2 . 3 2 4 . 2 1 1 . 3 2 13 1 . 3 4 1 . . 6 Terminals 29 | . 1 . . . . . . . . . . 2 13 1 . 3 3 1 . . 5 Fabricators 4 | . . . . . . . . . . . 3 . . . . . 1 . . . . Repair Stations . | . . . . . . . . . . . . . . . . . . . . . . Recycling Units 2 | . 1 . . . . . . . . . . . . . . . . . . . 1 Scanalyzers . | . . . . . . . . . . . . . . . . . . . . . . Garrison Access . | . . . . . . . . . . . . . . . . . . . . . . Total Hacks 123 | . 6 . 7 3 27 . 2 1 5 . 4 3 20 1 . 6 17 4 . . 17 Successful 87 | . 5 . 7 3 27 . 2 1 5 . 4 2 12 1 . 5 5 2 . . 6 Failed 36 | . 1 . . . . . . . . . . 1 8 . . 1 12 2 . . 11 Catastrophic 3 | . . . . . . . . . . . . . . . . . 2 . . . 1 Database Lockouts . | . . . . . . . . . . . . . . . . . . . . . . Manual 23 | . 1 . . . . . . . . . 2 2 . . . 3 9 . . . 6 Terminals 68 | . 5 . . . . . . . . . . 3 20 1 . 6 15 4 . . 14 Fabricators 6 | . . . . . . . . . . . 4 . . . . . 2 . . . . Repair Stations . | . . . . . . . . . . . . . . . . . . . . . . Recycling Units 4 | . 1 . . . . . . . . . . . . . . . . . . . 3 Scanalyzers . | . . . . . . . . . . . . . . . . . . . . . . Garrison Access . | . . . . . . . . . . . . . . . . . . . . . . Terminal Hacks 78 | . 4 . 7 3 27 . 2 1 5 . . 2 12 1 . 2 5 2 . . 5 Record 39 | . 3 . 5 3 21 . 1 . . . . . . . . 2 2 . . . 2 Part Schematic 5 | . . . . . . . . . 5 . . . . . . . . . . . . Robot Schematic 2 | . . . . . . . . . . . . . . . . . 1 . . . 1 Robot Analysis 7 | . . . . . 6 . . . . . . . . . . . . 1 . . . Prototype ID Bank 1 | . 1 . . . . . . . . . . . . . . . . . . . . Open Door 17 | . . . 1 . . . 1 1 . . . 1 12 1 . . . . . . . Level Access Points 1 | . . . . . . . . . . . . . . . . . . . . . 1 Branch Access Points 2 | . . . . . . . . . . . . 1 . . . . 1 . . . . Emergency Access Points 1 | . . . . . . . . . . . . . . . . . 1 . . . . Machine Index 1 | . . . . . . . . . . . . . . . . . . 1 . . . Disengage Seal 1 | . . . . . . . . . . . . . . . . . . . . . 1 Release Object 1 | . . . 1 . . . . . . . . . . . . . . . . . . Fabricator Hacks 2 | . . . . . . . . . . . 2 . . . . . . . . . . Load Schematic 1 | . . . . . . . . . . . 1 . . . . . . . . . . Build 1 | . . . . . . . . . . . 1 . . . . . . . . . . Repair Station Hacks . | . . . . . . . . . . . . . . . . . . . . . . Recycling Unit Hacks . | . . . . . . . . . . . . . . . . . . . . . . Scanalyzer . | . . . . . . . . . . . . . . . . . . . . . . Garrison Access Hacks . | . . . . . . . . . . . . . . . . . . . . . . Unauthorized Hacks 7 | . 1 . . . . . . . . . 2 . . . . 3 . . . . 1 Terminals 3 | . . . . . . . . . . . . . . . . 3 . . . . . Sabotage 3 | . . . . . . . . . . . . . . . . 3 . . . . . Fabricators 2 | . . . . . . . . . . . 2 . . . . . . . . . . Overload 2 | . . . . . . . . . . . 2 . . . . . . . . . . Repair Stations 1 | . . . . . . . . . . . . . . . . . . . . . 1 Recycling Units 1 | . 1 . . . . . . . . . . . . . . . . . . . . Tunnel 1 | . 1 . . . . . . . . . . . . . . . . . . . . Scrapoids 1 | . . . . . . . . . . . . . . . . . . . . . 1 Scanalyzers . | . . . . . . . . . . . . . . . . . . . . . . Garrison Access . | . . . . . . . . . . . . . . . . . . . . . . Data Cores Recovered 5 | . . . . . . 1 . . . . . . 1 . . . 1 1 . . 1 Used . | . . . . . . . . . . . . . . . . . . . . . . Hacking Detections 16 | . 1 . . . . . . . . . 1 1 4 . . 1 4 1 . . 3 Full Trace Events 2 | . . . . . . . . . . . 1 . 1 . . . . . . . . Feedback Events . | . . . . . . . . . . . . . . . . . . . . . . Feedback Blocked . | . . . . . . . . . . . . . . . . . . . . . . Robot Schematics Acquired 2 | . . . . . . . . . . . . . . . . . 1 . . . 1 Robots Built . | . . . . . . . . . . . . . . . . . . . . . . Authchips . | . . . . . . . . . . . . . . . . . . . . . . Time . | . . . . . . . . . . . . . . . . . . . . . . Total Robot Build Rating . | . . . . . . . . . . . . . . . . . . . . . . Part Schematics Acquired 5 | . . . . . . . . . 5 . . . . . . . . . . . . Parts Built 1 | . . . . . . . . . . . 1 . . . . . . . . . . Authchips . | . . . . . . . . . . . . . . . . . . . . . . Time 47 | . . . . . . . . . . . 47 . . . . . . . . . . Total Part Build Rating 5 | . . . . . . . . . . . 5 . . . . . . . . . . Parts Repaired . | . . . . . . . . . . . . . . . . . . . . . . Time . | . . . . . . . . . . . . . . . . . . . . . . Parts Recycled . | . . . . . . . . . . . . . . . . . . . . . . Recycled Matter . | . . . . . . . . . . . . . . . . . . . . . . Retrieved Matter . | . . . . . . . . . . . . . . . . . . . . . . Retrieved Components . | . . . . . . . . . . . . . . . . . . . . . . Parts Scanalyzed . | . . . . . . . . . . . . . . . . . . . . . . Part Schematics Acquired . | . . . . . . . . . . . . . . . . . . . . . . Parts Damaged . | . . . . . . . . . . . . . . . . . . . . . . Bothacking | -11 -10 -10 -10 -9 -9 -6 -6 -6 -6 -5 -5 -4 -4 -4 -4 -4 -3 -3 -2 -1 -1 ------------ Run | Yrd Mat Min Sub Rec Scr Fac Low Low Zio Pro Fac Fac Ext Cet Arc Hub Res Arm Res Acc Com Used RIF Installer . | . . . . . . . . . . . . . . . . . . . . . . Robots Hacked . | . . . . . . . . . . . . . . . . . . . . . . Non-combat . | . . . . . . . . . . . . . . . . . . . . . . Combat . | . . . . . . . . . . . . . . . . . . . . . . Robot Hacks Applied . | . . . . . . . . . . . . . . . . . . . . . . Relay Couplers Released 3 | . . . . . . . . . . . 2 . . . . 1 . . . . . Machine Destruction 3 | . . . . . . . . . . . 2 . . . . 1 . . . . . Fabnet Peak Effective % . | . . . . . . . . . . . . . . . . . . . . . . Robots Rewired 20 | . . . . . . . 2 . . . . . 14 . . . . 4 . . . Allies Hacked 2 | . . . . . . . . . . . . . . . . . . 1 . . 1 Hacks Repelled . | . . . . . . . . . . . . . . . . . . . . . . Allies | -11 -10 -10 -10 -9 -9 -6 -6 -6 -6 -5 -5 -4 -4 -4 -4 -4 -3 -3 -2 -1 -1 -------- Run | Yrd Mat Min Sub Rec Scr Fac Low Low Zio Pro Fac Fac Ext Cet Arc Hub Res Arm Res Acc Com Total Allies 56 | . . 1 . . . . 2 . . . . . 34 . . . . 14 . . 5 Largest Group 32 | . . 1 . . . . 2 2 1 1 1 . 32 24 22 18 . 13 . . 5 Highest-Rated Group 1407 | . . 31 . . . . 61 61 32 32 32 . 1407 1097 973 814 . 658 . . 320 Highest-Rated Ally 64 | . . 31 . . . . 32 32 32 32 32 . 51 51 51 51 . 58 . . 64 Total Orders 2 | . . . . . . . . . . . 2 . . . . . . . . . . RETURN 2 | . . . . . . . . . . . 2 . . . . . . . . . . Ally Attacks 417 | . . 4 . . . . . 16 . 1 8 . 54 43 28 99 . 120 . . 44 Total Damage 11326 | . . 61 . . . . . 324 . 27 333 . 1440 1053 832 2781 . 3512 . . 963 Kills 78 | . . 1 . . . . . 2 . . 3 . 10 7 7 22 . 20 . . 6 Allies Corrupted . | . . . . . . . . . . . . . . . . . . . . . . Allies Melted 1 | . . . . . . . . . . . . . . . . 1 . . . . . Intel | -11 -10 -10 -10 -9 -9 -6 -6 -6 -6 -5 -5 -4 -4 -4 -4 -4 -3 -3 -2 -1 -1 ------- Run | Yrd Mat Min Sub Rec Scr Fac Low Low Zio Pro Fac Fac Ext Cet Arc Hub Res Arm Res Acc Com Robot Analysis Total 7 | . . . . . 6 . . . . . . . . . . . . 1 . . . Derelict Logs Recovered 11 | . . 1 3 . 2 . 1 1 1 2 . . . . . . . . . . . Drone Launches 2 | . . . . . . . . . . . 2 . . . . . . . . . . Drone Recoveries 2 | . . . . . . . . . . . 2 . . . . . . . . . . Exploration | -11 -10 -10 -10 -9 -9 -6 -6 -6 -6 -5 -5 -4 -4 -4 -4 -4 -3 -3 -2 -1 -1 ------------- Run | Yrd Mat Min Sub Rec Scr Fac Low Low Zio Pro Fac Fac Ext Cet Arc Hub Res Arm Res Acc Com Turns Passed 21834 | 33 753 450 1852 756 2526 867 1359 1029 1008 1110 1444 677 1150 429 144 554 948 1047 81 309 3308 Spaces Moved 14606 | 29 746 489 1436 553 1880 575 941 784 779 807 742 442 618 267 87 311 629 580 61 185 1665 Core 1 | 1 . . . . . . . . . . . . . . . . . . . . . Treads . | . . . . . . . . . . . . . . . . . . . . . . Legs 12882 | . . . 976 553 1880 575 941 784 779 807 742 442 618 267 87 311 629 580 61 185 1665 Wheels 1723 | 28 746 489 460 . . . . . . . . . . . . . . . . . . Hover . | . . . . . . . . . . . . . . . . . . . . . . Flight . | . . . . . . . . . . . . . . . . . . . . . . Fastest Speed 50 | 50 80 80 80 130 130 123 123 123 123 123 123 125 123 123 123 122 120 120 120 117 117 Average Speed 119 | 78 80 80 118 130 130 124 123 123 123 123 123 125 123 123 123 122 120 120 120 119 120 Slowest Speed 195 | 80 80 80 130 130 130 130 123 123 123 123 130 130 125 123 123 123 122 120 120 120 195 Overloaded Moves . | . . . . . . . . . . . . . . . . . . . . . . Propulsion Burnouts . | . . . . . . . . . . . . . . . . . . . . . . Robots Hopped . | . . . . . . . . . . . . . . . . . . . . . . Cave-ins Triggered . | . . . . . . . . . . . . . . . . . . . . . . Exploration Rate (%) 56 | 3 98 91 53 94 91 17 96 91 80 91 20 13 69 82 88 47 22 44 2 4 41 Regions Visited 21 Branch Regions 14 Pre-discovered Areas 10 | . 1 1 3 . 2 . . . 2 1 . . . . . . . . . . . Known Exits Taken 20 | . 1 1 1 1 1 1 1 1 1 1 1 1 1 1 1 1 1 1 1 1 . Unknown Exits Taken 1 | 1 . . . . . . . . . . . . . . . . . . . . . Scrap Searched 28 | . . 1 2 . 6 . 4 9 4 2 . . . . . . . . . . . Spaces Dug 10 | . . . 1 . . . 1 . . . . . . . . 7 . 1 . . . Terrain Destroyed 196 | . . . 2 . . . 10 1 . . . 6 . 1 . 23 12 36 . 9 96 Melee . | . . . . . . . . . . . . . . . . . . . . . . Projectile 190 | . . . 2 . . . 10 1 . . . . . 1 . 23 12 36 . 9 96 AOE 6 | . . . . . . . . . . . . 6 . . . . . . . . . Terrain Rammed . | . . . . . . . . . . . . . . . . . . . . . . Walls Destroyed . | . . . . . . . . . . . . . . . . . . . . . . Machines Disabled . | . . . . . . . . . . . . . . . . . . . . . . Actions | -11 -10 -10 -10 -9 -9 -6 -6 -6 -6 -5 -5 -4 -4 -4 -4 -4 -3 -3 -2 -1 -1 --------- Run | Yrd Mat Min Sub Rec Scr Fac Low Low Zio Pro Fac Fac Ext Cet Arc Hub Res Arm Res Acc Com Total 17174 | 35 836 537 1508 582 1961 667 1078 819 826 892 1004 501 917 346 121 382 738 777 62 236 2349 Wait 1036 | . 48 39 8 27 76 29 77 1 46 60 67 3 172 35 15 5 26 17 . 10 275 Move 14585 | 28 745 488 1435 552 1879 574 940 783 778 806 741 441 617 266 86 310 628 579 60 184 1665 Hop . | . . . . . . . . . . . . . . . . . . . . . . Pick Up 7 | . . . 3 . 1 . . . . . 1 . . . . . . . . . 2 Fast Attach 73 | 7 5 1 5 . 3 8 2 . 1 . 9 4 5 4 . 1 1 8 . 2 7 Attach . | . . . . . . . . . . . . . . . . . . . . . . Detach . | . . . . . . . . . . . . . . . . . . . . . . Swap 29 | . 1 1 1 . . . . 5 . . . . 2 4 . 2 1 6 . 2 4 Drop 72 | . 4 . 8 . 2 5 1 7 . . 10 . 6 7 . 2 1 8 . 3 8 Fire 681 | . 29 4 34 3 . 23 26 13 1 13 108 26 36 10 2 42 35 56 2 12 206 Melee . | . . . . . . . . . . . . . . . . . . . . . . Ram . | . . . . . . . . . . . . . . . . . . . . . . Kick 7 | . . . . . . . . . . . 2 1 . . . . 3 . . . 1 Crush . | . . . . . . . . . . . . . . . . . . . . . . Escape Stasis 23 | . . . . . . . . . . . . . . . . . . . . . 23 Rewire 62 | . . . . . . . 11 1 . . . . 36 . . . . 13 . . 1 Trap . | . . . . . . . . . . . . . . . . . . . . . . Miscellaneous 599 | . 4 4 14 . . 28 21 9 . 13 66 26 43 20 18 20 43 90 . 23 157 Route ------- -11/Scrapyard -10/Materials (discovered 4 exits: *Mat x3 / *Min) -10/Mines (discovered 4 exits: *Mat x2 / *Exi / *Sub) -10/Subcaves (discovered 3 exits: *Mat x2 / *Rec) -9/Recycling (discovered 2 exits: *Fac / *Scr) -9/Scraptown (discovered 2 exits: *Fac x2) -6/Factory (discovered 3 exits: Fac x2 / *Low) -6/Lower Caves -6/Lower Caves (discovered 2 exits: *Fac / *Zio) -6/Zion (discovered 2 exits: [Dee] / *Pro) -5/Proximity Caves -5/Factory -4/Factory (discovered 6 exits: *Res x2 / Upp x2 / *Ext x2) -4/Extension (discovered 3 exits: *Res x2 / *Cet) -4/Cetus (discovered 3 exits: *Res x2 / *Arc) -4/Archives (discovered 3 exits: *Res / *Hub x2) -4/Hub_04(d) (discovered 3 exits: *Res x3) -3/Research (discovered 4 exits: *Res / *Arm / Qua x2) -3/Armory -2/Research -1/Access -1/Command (discovered 2 exits: *Sur x2) History --------- Turn | Location | Event 1 | -11/Scrapyard | Upgraded with Power slot (x1) 1 | -11/Scrapyard | Upgraded with Propulsion slot (x1) 1 | -11/Scrapyard | Upgraded with Utility slot (x2) 1 | -11/Scrapyard | Upgraded with Weapon slot (x2) 23 | -11/Scrapyard | Discovered new exit (range 15) 34 | -11/Scrapyard | Entered Materials 301 | -10/Materials | Discovered new exit (range 15) 311 | -10/Materials | Build established: Gunner 314 | -10/Materials | Identified exit to Materials 429 | -10/Materials | Discovered exit to Materials (range 5) 443 | -10/Materials | Discovered new exit (range 15) 524 | -10/Materials | Identified exit to Mines 593 | -10/Materials | Reached level 2 741 | -10/Materials | Discovered exit to Materials (range 4) 787 | -10/Materials | Entered Mines 803 | -10/Mines | Met a Derelict bent on vengeance 812 | -10/Mines | Learned location of Recycling (-9) 817 | -10/Mines | Received a Mining Laser from a helpful Derelict 910 | -10/Mines | Discovered exit to Materials (range 11) 916 | -10/Mines | Reached level 3 943 | -10/Mines | Deemed a non-threat by the Exiles lab entrance 944 | -10/Mines | Discovered new exit (range 5) 946 | -10/Mines | Identified exit to Exiles 959 | -10/Mines | Discovered exit to Materials (range 12) 1227 | -10/Mines | Discovered new exit (range 10) 1233 | -10/Mines | Identified exit to Subcaves 1237 | -10/Mines | Entered Subcaves 1299 | -10/Subcaves | Visited Clippyterm 1305 | -10/Subcaves | Learned location of Section 7 (-3) 1341 | -10/Subcaves | Shifting Twisted Machinery released Sub. Shrapnel Launcher 1341 | -10/Subcaves | Shifting Twisted Machinery released Sub. Power Source 1557 | -10/Subcaves | Ambushed by Subdweller buried in earth 1716 | -10/Subcaves | Discovered new exit (range 3) 1719 | -10/Subcaves | Identified exit to Materials 1719 | -10/Subcaves | A Subdweller sparked back to life 1719 | -10/Subcaves | A Subdweller sparked back to life 1719 | -10/Subcaves | A Subdweller sparked back to life 1743 | -10/Subcaves | Found Prototype Leg 1743 | -10/Subcaves | Identified Cargo Legs 1744 | -10/Subcaves | Attached Cargo Legs, gained temporary slots: Utility x2 1752 | -10/Subcaves | Learned location of Storage (-9) 1753 | -10/Subcaves | Disturbed a concealed Subdweller 1769 | -10/Subcaves | Learned Materials stockpile data 1848 | -10/Subcaves | Discovered exit to Materials (range 8) 2188 | -10/Subcaves | Reached level 4 2198 | -10/Subcaves | Discovered new exit (range 12) 2208 | -10/Subcaves | Build established: Scavenger-Gunner 2611 | -10/Subcaves | Build established: Gunner 2925 | -10/Subcaves | Upgraded with Weapon slot (x1) 2965 | -10/Subcaves | Build established: Scavenger-Gunner 3087 | -10/Subcaves | Identified exit to Recycling 3089 | -10/Subcaves | Entered Recycling 3249 | -9/Recycling | Discovered new exit (range 8) 3262 | -9/Recycling | Identified exit to Factory 3681 | -9/Recycling | Reached level 5 3756 | -9/Recycling | Scanned before Scraplab entrance 3824 | -9/Recycling | Entered Scraplab 3835 | -9/Recycling | Discovered new exit (range 2) 3835 | -9/Recycling | Identified exit to Scraptown 3845 | -9/Recycling | Entered Scraptown 4004 | -9/Scraptown | Visited UFD Registry 4004 | -9/Scraptown | Registered with UFD as "Hammerflow" 4048 | -9/Scraptown | Visited Chapter 10 4100 | -9/Scraptown | Visited Derelict Rescue Squad 4134 | -9/Scraptown | Visited Scrap Suit Storage 4215 | -9/Scraptown | Visited Curators Association 4232 | -9/Scraptown | Visited Observation Area 4284 | -9/Scraptown | Visited Infowarlord's Domain 4315 | -9/Scraptown | Visited Analyses Database 4362 | -9/Scraptown | Delivered Scrap Shield to a Scientist 4707 | -9/Scraptown | Visited Scrapoid Pod Storage 4726 | -9/Scraptown | Visited Junk Repository 4763 | -9/Scraptown | Visited DA-N13 Charitable Foundation 4768 | -9/Scraptown | Found DCF Scrap (32 items) 4947 | -9/Scraptown | Found Scrap Suit 5153 | -9/Scraptown | Visited Cyclists 5162 | -9/Scraptown | Entered Cyclist Reading Room 5196 | -9/Scraptown | Visited TADAMA 5235 | -9/Scraptown | Discovered new exit (range 11) 5594 | -9/Scraptown | Visited Comm Corps 5611 | -9/Scraptown | Visited CR-KLE's Repair Center 5985 | -9/Scraptown | Visited The Evicted 6016 | -9/Scraptown | Visited Spacefarers 6056 | -9/Scraptown | Scanned Subdweller tech in exchange for log data 6060 | -9/Scraptown | Learned location of Armory (-3) 6062 | -9/Scraptown | Learned location of Warlord (-4) 6244 | -9/Scraptown | Found Exp. Terrain Scanner 6355 | -9/Scraptown | Discovered new exit (range 5) 6364 | -9/Scraptown | Identified exit to Factory 6371 | -9/Scraptown | Entered Factory 6373 | -6/Factory | Reached level 6 6373 | -6/Factory | Reached level 7 6373 | -6/Factory | Reached level 8 6373 | -6/Factory | Reached level 9 6373 | -6/Factory | Reached level 10 6373 | -6/Factory | Reached level 11 6373 | -6/Factory | Reached level 12 6373 | -6/Factory | Reached level 13 6379 | -6/Factory | Upgraded with Power slot (x1) 6379 | -6/Factory | Upgraded with Propulsion slot (x2) 6379 | -6/Factory | Upgraded with Utility slot (x1) 6381 | -6/Factory | Discovered new exit (range 18) 6401 | -6/Factory | Discovered new exit (range 30) 6474 | -6/Factory | Build established: Gunner 6646 | -6/Factory | Reached level 14 6883 | -6/Factory | Build established: Scavenger-Gunner 6997 | -6/Factory | Discovered new exit (range 28) 7037 | -6/Factory | Identified exit to Lower Caves 7238 | -6/Factory | Entered Lower Caves 7240 | -6/Lower Caves | UFD Scientist delivered a prototype 7240 | -6/Lower Caves | Attracted the attention of an 0b10 checkpoint 7251 | -6/Lower Caves | Found Prototype Protection 7251 | -6/Lower Caves | Identified Enh. Scrap Shield 7274 | -6/Lower Caves | Reached level 15 7334 | -6/Lower Caves | Upgraded with Utility slot (x1) 7447 | -6/Lower Caves | Attracted the attention of an 0b10 outpost 7488 | -6/Lower Caves | Core integrity fell below 50% 7594 | -6/Lower Caves | Discovered new exit (range 29) 8001 | -6/Lower Caves | Identified exit to Lower Caves 8312 | -6/Lower Caves | Learned Factory security intel 8597 | -6/Lower Caves | Entered another Lower Caves area 8597 | -6/Lower Caves | Accompanied by 2 allies 8599 | -6/Lower Caves | Reached level 16 8617 | -6/Lower Caves | Discovered new exit (range 20) 8662 | -6/Lower Caves | Identified exit to Factory 8853 | -6/Lower Caves | Encountered a Warlord checkpoint 8915 | -6/Lower Caves | Attracted the attention of an 0b10 checkpoint 8966 | -6/Lower Caves | Upgraded with Utility slot (x1) 9053 | -6/Lower Caves | Discovered new exit (range 26) 9431 | -6/Lower Caves | Build established: Pyromaniac-Gunner 9498 | -6/Lower Caves | Learned Factory stockpile data 9522 | -6/Lower Caves | Identified exit to Zion 9626 | -6/Lower Caves | Entered Zion 9626 | -6/Zion | Accompanied by 1 ally 9628 | -6/Zion | Reached level 17 9717 | -6/Zion | Discovered new exit (range 26) 9748 | -6/Zion | Identified exit to Proximity Caves 9823 | -6/Zion | Learned location of Quarantine (-3) 10106 | -6/Zion | Discovered new exit (range 28) 10138 | -6/Zion | Given the Hacking Drone Bay 10140 | -6/Zion | Found Prototype Device 10140 | -6/Zion | Identified Hacking Drone Bay 10297 | -6/Zion | Turned away by Imprinter 10483 | -6/Zion | Learned 8 Factory zone layouts 10634 | -6/Zion | Entered Proximity Caves 10634 | -5/Proximity Caves | Accompanied by 1 ally 10669 | -5/Proximity Caves | Learned Factory terminal intel 10725 | -5/Proximity Caves | Reached level 18 10740 | -5/Proximity Caves | Upgraded with Utility slot (x1) 10995 | -5/Proximity Caves | Discovered exit to Factory (range 21) 11208 | -5/Proximity Caves | Attracted the attention of an 0b10 checkpoint 11227 | -5/Proximity Caves | Reached level 19 11744 | -5/Proximity Caves | Entered Factory 11744 | -5/Factory | Accompanied by 1 ally 11745 | -5/Factory | Identified exit to Factory 11746 | -5/Factory | Reached level 20 11748 | -5/Factory | Loaded intel: 26 terminal locations 12143 | -5/Factory | Reached level 21 12495 | -5/Factory | Core integrity fell below 50% 12644 | -5/Factory | First assault squad dispatched 12670 | -5/Factory | Reached level 22 12687 | -5/Factory | Cargo convoy interrupted 12724 | -5/Factory | Core integrity fell below 20% 12797 | -5/Factory | Found Prototype Device 12797 | -5/Factory | Identified Exp. Thermal Shield 12808 | -5/Factory | Found Prototype Device 12808 | -5/Factory | Identified Thermal Barrier 12812 | -5/Factory | Found Exp. Thermal Shield 12813 | -5/Factory | Destroyed 9 combat bots 12819 | -5/Factory | Found PL-3XN's Ring of Power 12937 | -5/Factory | Garrison activated, responded to threat 12969 | -5/Factory | Destroyed 10 combat bots 13075 | -5/Factory | Fabricated Plasma Flamer? 13188 | -5/Factory | Entered another Factory area 13190 | -4/Factory | Reached level 23 13259 | -4/Factory | Discovered new exit (range 20) 13267 | -4/Factory | Reached level 24 13270 | -4/Factory | Identified exit to Upper Caves 13270 | -4/Factory | Identified exit to Extension 13384 | -4/Factory | Discovered new exit (range 29) 13559 | -4/Factory | Build established: Hacker-Gunner 13688 | -4/Factory | First assault squad dispatched 13756 | -4/Factory | Identified exit to Research 13865 | -4/Factory | Entered Extension 13994 | -4/Extension | Reached level 25 14111 | -4/Extension | Rescued a captive Derelict 14146 | -4/Extension | Rescued a captive Derelict 14149 | -4/Extension | Rescued a captive Derelict 14177 | -4/Extension | Rescued a captive Derelict 14177 | -4/Extension | Rescued a captive Derelict 14185 | -4/Extension | Rescued a captive Derelict 14185 | -4/Extension | Rescued a captive Derelict 14224 | -4/Extension | Discovered exit to Research (range 30) 14236 | -4/Extension | Rescued a captive Derelict 14236 | -4/Extension | Rescued a captive Derelict 14245 | -4/Extension | Spotted B-86 Titan 14257 | -4/Extension | Destroyed B-86 Titan 14261 | -4/Extension | Spotted B-86 Titan 14278 | -4/Extension | Destroyed B-86 Titan 14312 | -4/Extension | Rescued a captive Derelict 14408 | -4/Extension | Rescued a captive Derelict 14409 | -4/Extension | Rescued a captive Derelict 14423 | -4/Extension | Rescued a captive Derelict 14423 | -4/Extension | Rescued a captive Derelict 14451 | -4/Extension | Rescued a captive Derelict 14518 | -4/Extension | Rescued a captive Derelict 14518 | -4/Extension | Rescued a captive Derelict 14535 | -4/Extension | Rescued a captive Derelict 14548 | -4/Extension | Rescued a captive Derelict 14549 | -4/Extension | Rescued a captive Derelict 14772 | -4/Extension | Discovered new exit (range 30) 14796 | -4/Extension | Discovered exit to Research (range 26) 14837 | -4/Extension | Identified exit to Cetus 15015 | -4/Extension | Entered Cetus 15015 | -4/Cetus | Accompanied by 24 allies 15030 | -4/Cetus | Spotted Cetus Guard 15030 | -4/Cetus | Spotted Cetus Guard 15032 | -4/Cetus | Allies destroyed Cetus Guard 15032 | -4/Cetus | Spotted Cetus Guard 15032 | -4/Cetus | Spotted Cetus Guard 15036 | -4/Cetus | Destroyed Cetus Guard 15049 | -4/Cetus | Destroyed Cetus Guard 15051 | -4/Cetus | Allies destroyed Cetus Guard 15133 | -4/Cetus | Discovered exit to Research (range 29) 15216 | -4/Cetus | Discovered new exit (range 30) 15300 | -4/Cetus | Discovered exit to Research (range 24) 15300 | -4/Cetus | Spotted Cetus Guard 15300 | -4/Cetus | Spotted Cetus Guard 15301 | -4/Cetus | Reached level 26 15301 | -4/Cetus | Allies destroyed Cetus Guard 15302 | -4/Cetus | Spotted Cetus Guard 15302 | -4/Cetus | Spotted Cetus Guard 15309 | -4/Cetus | Allies destroyed Cetus Guard 15312 | -4/Cetus | Allies destroyed Cetus Guard 15320 | -4/Cetus | Destroyed Cetus Guard 15331 | -4/Cetus | Met Revision 17 15368 | -4/Cetus | Build established: Hacker-Tank 15398 | -4/Cetus | Identified exit to Archives 15444 | -4/Cetus | Entered Archives 15444 | -4/Archives | Accompanied by 22 allies 15449 | -4/Archives | Discovered new exit (range 25) 15466 | -4/Archives | Discovered new exit (range 25) 15467 | -4/Archives | Discovered exit to Research (range 19) 15499 | -4/Archives | Lost 4 allies 15511 | -4/Archives | Unable to access archive contents 15530 | -4/Archives | Identified exit to Hub_04(d) 15588 | -4/Archives | Entered Hub_04(d) 15588 | -4/Hub_04(d) | Accompanied by 18 allies 15635 | -4/Hub_04(d) | Discovered exit to Research (range 17) 15710 | -4/Hub_04(d) | Discovered exit to Research (range 25) 15776 | -4/Hub_04(d) | Reached level 27 15797 | -4/Hub_04(d) | Destroyed 7 combat bots 15799 | -4/Hub_04(d) | Upgraded with Propulsion slot (x1) 15800 | -4/Hub_04(d) | Lost 13 allies 15838 | -4/Hub_04(d) | First assault squad dispatched 16005 | -4/Hub_04(d) | Network Hub disabled 16038 | -4/Hub_04(d) | Spotted Lightning 16055 | -4/Hub_04(d) | Spotted Lightning 16057 | -4/Hub_04(d) | Destroyed Lightning 16057 | -4/Hub_04(d) | Spotted Lightning 16070 | -4/Hub_04(d) | Spotted Lightning 16072 | -4/Hub_04(d) | Spotted Lightning 16081 | -4/Hub_04(d) | Spotted Lightning 16082 | -4/Hub_04(d) | Discovered exit to Research (range 24) 16082 | -4/Hub_04(d) | System corruption reached 10% 16085 | -4/Hub_04(d) | Destroyed Lightning 16104 | -4/Hub_04(d) | Core integrity fell below 50% 16142 | -4/Hub_04(d) | Entered Research 16143 | -3/Research | Core integrity fell below 50% 16144 | -3/Research | Reached level 28 16342 | -3/Research | Revision forces began assault on 0b10 16352 | -3/Research | Identified exit to Armory 16352 | -3/Research | Identified exit to Quarantine 16425 | -3/Research | Met up with Revision 17++ 16641 | -3/Research | Discovered new exit (range 29) 16698 | -3/Research | Identified exit to Research 16842 | -3/Research | Research terminal network offline 16911 | -3/Research | Spotted Striker 17043 | -3/Research | Spotted Striker 17058 | -3/Research | Destroyed Striker 17090 | -3/Research | Entered Armory 17092 | -3/Armory | Reached level 29 17328 | -3/Armory | Assisted by bots powering up and referring to "LRC-V3" 17340 | -3/Armory | First assault squad dispatched 17495 | -3/Armory | Discovered exit to Research (range 22) 17532 | -3/Armory | Upgraded with Weapon slot (x1) 17582 | -3/Armory | Reached level 30 17695 | -3/Armory | Lost 9 allies 17704 | -3/Armory | Destroyed 10 combat bots 18049 | -3/Armory | Spotted B-86 Titan 18072 | -3/Armory | High security lockdown imminent 18137 | -3/Armory | Entered Research 18139 | -2/Research | Reached level 31 18144 | -2/Research | Discovered new exit (range 11) 18214 | -2/Research | Identified exit to Access 18218 | -2/Research | Entered Access 18220 | -1/Access | Reached level 32 18274 | -1/Access | Discovered new exit (range 28) 18291 | -1/Access | Garrison activated, responded to threat 18315 | -1/Access | Spotted B-99 Colossus 18393 | -1/Access | Destroyed B-99 Colossus 18480 | -1/Access | Spotted B-99 Colossus 18481 | -1/Access | Destroyed B-99 Colossus 18518 | -1/Access | First assault squad dispatched 18526 | -1/Access | Identified exit to Command 18527 | -1/Access | Entered Command 18529 | -1/Command | Reached level 33 18529 | -1/Command | Reached level 34 18574 | -1/Command | Identified exit to Surface 18684 | -1/Command | Build established: Hacker-Gunner 18861 | -1/Command | Disengaged cave seal 19058 | -1/Command | First assault squad dispatched 19102 | -1/Command | Destroyed 7 combat bots 19246 | -1/Command | Spotted Alpha 7 19246 | -1/Command | Spotted Alpha 7 19274 | -1/Command | Spotted Striker 19277 | -1/Command | Spotted Striker 19285 | -1/Command | Destroyed Alpha 7 19290 | -1/Command | Spotted Executioner 19292 | -1/Command | Destroyed Executioner 19301 | -1/Command | Destroyed Striker 19317 | -1/Command | Destroyed Alpha 7 19395 | -1/Command | Spotted Executioner 19395 | -1/Command | Spotted Executioner 19395 | -1/Command | Spotted Executioner 19418 | -1/Command | Destroyed Executioner 19454 | -1/Command | Spotted B-99 Colossus 19563 | -1/Command | Destroyed B-99 Colossus 19568 | -1/Command | Reached level 35 19594 | -1/Command | Upgraded with Utility slot (x1) 19621 | -1/Command | Destroyed Executioner 19625 | -1/Command | Destroyed Executioner 19625 | -1/Command | Spotted B-99 Colossus 19843 | -1/Command | Destroyed B-99 Colossus 20278 | -1/Command | Destroyed 9 combat bots 20935 | -1/Command | System corruption reached 10% 20973 | -1/Command | Spotted B-99 Colossus 21011 | -1/Command | Destroyed B-99 Colossus 21182 | -1/Command | Scrapoids reinforcements arrived? 21189 | -1/Command | Reached level 36 21224 | -1/Command | Lost 4 allies 21313 | -1/Command | High security lockdown imminent 21343 | -1/Command | Destroyed 7 combat bots 21393 | -1/Command | High security lockdown engaged 21483 | -1/Command | Spotted Executioner 21518 | -1/Command | Spotted Executioner 21540 | -1/Command | Destroyed Executioner 21566 | -1/Command | Destroyed 15 combat bots 21578 | -1/Command | Spotted Investigator 21580 | -1/Command | Scanned by Researcher 21584 | -1/Command | Destroyed Investigator 21694 | -1/Command | Destroyed 16 combat bots 21694 | -1/Command | Found Prototype Launcher 21694 | -1/Command | Identified Containment Facilitator 21720 | -1/Command | Spotted Executioner 21721 | -1/Command | Core integrity fell below 50% 21725 | -1/Command | Spotted Executioner 21741 | -1/Command | Destroyed Executioner 21787 | -1/Command | Destroyed Executioner 21798 | -1/Command | Core integrity fell below 20% 21799 | -1/Command | Spotted Executioner 21799 | -1/Command | Spotted Striker 21835 | -1/Command | Destroyed by Executioner with Helical Railgun Last Messages --------------- rejected. 21822_ Slug penetrates Wall. 21824_ B-74 Champion overheating. 21825_ B-74 Champion heat spikes uncontrollably. 21825_ B-74 Champion overheating. 21826_ Penetrated by Slug. 21826_ Slug penetrates Wall. 21826_ Melted Med. Treads. 21826_ Melted Unknown Protection. 21826_ B-74 Champion overheating. 21827_ B-74 Champion heat spikes uncontrollably. 21827_ B-74 Champion critical meltdown. 21829_ Penetrated by Slug. 21829_ Slug penetrates Wall. 21831_ Critical hit (Burn: +37). 21832_ Slug penetrates Wall. 21834_ Critical hit (Burn: +37). 21835_ Penetrated by Slug. 21835_ Slug penetrates Wall. 21835_ Penetrated by Slug. Map ----- +----------------------------------------------------+ | | | | | | | | | | | | | | | | | | | | | | | | | | | | | | | | | | | | | | | | | | | | | | | ???????############"#?#!=!%######;################ | | ????#### %=%####Eg#=/*! ## | | ?? ; [[i%/b%g=@K*=** !!! "# | | ???????# [=%=[=%#=####g%*% !!! ## == | | ???????# *%/*!%|!##*#??#==[ !!! ## == | | ????# " !/*%*[=[#=##??#[= % "" = | | ????#######"#"!%[##########|%! !! % "%% | | ?????#""#####%=*/= "==% =% ] "" [ | | ??????# =!="%########"%*####""#+";#;%;##""###% | | ??????# "%=###??# "### "! % %= | | ??????# [% #????# = %" #?###! ] | | ??????#" =%! ######! [ #####"= %%*% %% %% | | ??????#%#####*=! " ! + = % [ !%=! | | ??????# #???#%=[ " # #"""""""##[[% | | ??????# #???#!%[ " # " % ## % | | ????###+#####%%& # *# %"= ## | | ????# ##%%%! + " %"% ## | | ????# +[%%#!#### "+% " !!! #"% | | ????# #%%=!##??# "[ " ]! ## | | ????# ! #![!##???# # " ]! ## | | ????# #" %#????# # " ## | | ????# %%##!%##???# # / = % # ## % | | ????#####+"#!!=%#???#######" !/= #%! ## | | ????# ] !*!#?????????####"#"=% #"######### | | ????# !] #???????????# ##" # #???????# | | ????# ###"# #???????????##?#""""+""#???????# | | ????# #?##" #""#??????????????#^^!^* ##???????# | +----------------------------------------------------+ Best States ------------- Heat Dissipation 169 Energy Generation 59 Energy Capacity 910 Matter Stores 300 Matter Capacity 300 Sight Range 19 Robot Scan Range 14 Terrain Scan Range 30 Terrain Scan Density 710 Armor Coverage 800 Resistance: KI 40 Resistance: TH 70 Resistance: EX 40 Resistance: EM 20 Resistance: I 20 Resistance: S 20 Resistance: P 20 Utility Shielding 66 Weapon Shielding 33 Phase Shifting 15 Evasion (%) 70 Target Analysis 8 Core Analysis 6 Energy Filtering 50 Offensive Hacking 40 Defensive Hacking 5 Item Schematics ----------------- Battle Cannon | -6/Zion | Free Slug Cannon | -6/Zion | Free Enh. Flamer | -6/Zion | Free Plasma Flamer | -6/Zion | Free Beamcaster | -6/Zion | Free Robot Schematics ------------------ C-55 Analyst | -3/Research | Hacked E-15 Imp | -1/Command | Hacked Fabricated ------------ Plasma Flamer | x1 | -5/Factory Alien Tech Used ----------------- None Achievements -------------- Origins Challenges ------------ None RPGLIKE | -11 -10 -10 -10 -9 -9 -6 -6 -6 -6 -5 -5 -4 -4 -4 -4 -4 -3 -3 -2 -1 -1 --------- Run | Yrd Mat Min Sub Rec Scr Fac Low Low Zio Pro Fac Fac Ext Cet Arc Hub Res Arm Res Acc Com Levels Raised 35 | . 1 1 1 1 . 9 1 1 1 2 3 2 1 1 . 1 1 2 1 1 4 XP Earned 57971 | 4000 2155 1208 1400 1300 650 13652 1950 1571 604 2510 5921 2413 1712 660 299 1539 2318 2318 1048 2571 6172 XP Spent 56210 | 3600 1800 1600 1100 1900 . 12510 1400 1700 . 3000 6710 3000 1400 . 1250 2000 1425 3080 1470 . 7265 Upgrades 134 | 6 10 4 1 2 . 31 1 1 . 2 31 5 2 . 7 2 5 5 3 . 16 Power Slot 2 | 1 . . . . . 1 . . . . . . . . . . . . . . . Propulsion Slot 4 | 1 . . . . . 2 . . . . . . . . . 1 . . . . . Utility Slot 7 | 2 . . . . . 1 1 1 . 1 . . . . . . . . . . 1 Weapon Slot 4 | 2 . . 1 . . . . . . . . . . . . . . 1 . . . Core Integrity 40 | . . . . . . . . . . . 24 . . . . . 5 . . . 11 Heat Dissipation 24 | . 5 . . . . 7 . . . . 5 . . . . . . 4 3 . . Energy Storage 4 | . . . . . . . . . . . . . . . . . . . . . 4 Mass Support 2 | . . 1 . . . . . . . . . . . . . 1 . . . . . Inventory Capacity 4 | . . 3 . . . . . . . 1 . . . . . . . . . . . Sight Range 3 | . . . . . . . . . . . . . . . 3 . . . . . . Sensor Range 4 | . . . . . . . . . . . . . . . 4 . . . . . . Terrain Scan Density 7 | . . . . . . 7 . . . . . . . . . . . . . . . Ranged Accuracy 6 | . . . . . . 4 . . . . 2 . . . . . . . . . . Hack Attack % 6 | . . . . . . . . . . . . 5 1 . . . . . . . . Hack Defense % 1 | . . . . . . . . . . . . . 1 . . . . . . . . KI Resistance % 4 | . 2 . . . . 2 . . . . . . . . . . . . . . . TH Resistance % 4 | . 1 . . . . 3 . . . . . . . . . . . . . . . EX Resistance % 4 | . . . . . . 4 . . . . . . . . . . . . . . . TH Damage % 4 | . 2 . . 2 . . . . . . . . . . . . . . . . . Protomatter Created 8208 | . 63 10 59 49 . 218 269 17 . 169 1337 321 279 47 . 499 392 857 . 287 3335 Integrity Restored 12625 | . 84 75 177 . . 581 433 191 . 212 1485 588 957 437 407 380 966 2008 . 522 3122 Core 10086 | . 84 75 177 . . 362 335 191 . 97 1446 588 857 199 . 257 966 1862 . 522 2068 Parts 2539 | . . . . . . 219 98 . . 115 39 . 100 238 407 123 . 146 . . 1054 Protomatter Decayed 6331 | . 6 . 39 49 . 16 122 10 . 95 713 129 291 . 147 819 1145 208 . 113 2429 Game ------ Seed CorruptionLauncherPod Manual? 0 Play Time 03:35:27 Cumulative 86.7 hours Start 2024.09.09 @ 19:02:36 End 2024.09.10 @ 11:02:12 Sessions 3 Manual Loads 0 Difficulty Adventurer Special Mode Winter2019/RPGLIKE Game No. 55 Rogue 0 Adventurer 55 Explorer 0 Win Type - Total 4 Types 2/0/1/1/0/0/0/0/0 Lore% 46 Gallery% 50 Achievement% 67 Wizard Run 0 Options --------- Layout 2 ASCII 0 Keyboard 0 Movement Numpad Keybinds 0 Fullscreen 2 Font 24/Smallcaps Map View 50x44 Zoom Use 0% Tactical HUD 1 Map Filters NONE Filters NONE Steam 1 RUN: de664dda-386b-4b0a-8289-a302cc3b4afb